[Event "Titled Tuesday Blitz March 28 Late 2023"]
[White "Sokac, Marko"]
[Black "Baskakov, Egor"]
[WhiteFideId "14531356"]
[BlackFideId "24197866"]
[WhiteElo "2355"]
[BlackElo "2212"]
[Result "1-0"]
[Round "02"]
[TimeControl "180+2"]
[Date "2023.03.28"]
[WhiteClock "0:00:05"]
[BlackClock "0:00:06"]

1. e4 {[%clk 0:03:00]}  c5 {[%clk 0:02:55]} 2. a3 {[%clk 0:03:00]}  Nf6 {[%clk 0:02:53]} 3. e5 {[%clk 0:02:59]}  Nd5 {[%clk 0:02:53]} 4. c4 {[%clk 0:02:58]}  Nc7 {[%clk 0:02:53]} 5. Nf3 {[%clk 0:02:47]}  Nc6 {[%clk 0:02:51]} 6. b4 {[%clk 0:02:46]}  d6 {[%clk 0:02:49]} 7. Bb2 {[%clk 0:02:43]}  Bg4 {[%clk 0:02:45]} 8. Be2 {[%clk 0:02:40]}  e6 {[%clk 0:02:39]} 9. exd6 {[%clk 0:02:38]}  Bxd6 {[%clk 0:02:40]} 10. h3 {[%clk 0:02:35]}  Bh5 {[%clk 0:02:40]} 11. O-O {[%clk 0:02:35]}  O-O {[%clk 0:02:38]} 12. b5 {[%clk 0:02:28]}  Ne7 {[%clk 0:02:26]} 13. d4 {[%clk 0:02:28]}  a6 {[%clk 0:02:15]} 14. a4 {[%clk 0:02:17]}  axb5 {[%clk 0:02:12]} 15. axb5 {[%clk 0:02:18]}  Rxa1 {[%clk 0:02:12]} 16. Bxa1 {[%clk 0:02:19]}  Qa8 {[%clk 0:02:12]} 17. Nbd2 {[%clk 0:02:15]}  cxd4 {[%clk 0:02:07]} 18. Nxd4 {[%clk 0:02:09]}  Bg6 {[%clk 0:01:55]} 19. Bf3 {[%clk 0:02:02]}  Rd8 {[%clk 0:01:48]} 20. Qe2 {[%clk 0:02:00]}  Ne8 {[%clk 0:01:29]} 21. N4b3 {[%clk 0:01:57]}  Bb4 {[%clk 0:01:23]} 22. Ne4 {[%clk 0:01:53]}  Qa4 {[%clk 0:01:13]} 23. Qb2 {[%clk 0:01:47]}  b6 {[%clk 0:00:56]} 24. h4 {[%clk 0:01:31]}  h6 {[%clk 0:00:54]} 25. h5 {[%clk 0:01:30]}  Bf5 {[%clk 0:00:54]} 26. g4 {[%clk 0:01:24]}  Bh7 {[%clk 0:00:53]} 27. Nd4 {[%clk 0:00:51]}  Qa3 {[%clk 0:00:46]} 28. Qe2 {[%clk 0:00:47]}  Nd6 {[%clk 0:00:40]} 29. Nc2 {[%clk 0:00:45]}  Qb3 {[%clk 0:00:37]} 30. Nxb4 {[%clk 0:00:45]}  Nxe4 {[%clk 0:00:33]} 31. Nc6 {[%clk 0:00:36]}  Nxc6 {[%clk 0:00:32]} 32. bxc6 {[%clk 0:00:37]}  Ng5 {[%clk 0:00:20]} 33. Bg2 {[%clk 0:00:36]}  Bd3 {[%clk 0:00:13]} 34. Qd1 {[%clk 0:00:33]}  Qxc4 {[%clk 0:00:11]} 35. Re1 {[%clk 0:00:31]}  Rc8 {[%clk 0:00:05]} 36. Be5 {[%clk 0:00:17]}  Be4 {[%clk 0:00:05]} 37. Bxe4 {[%clk 0:00:12]}  Nxe4 {[%clk 0:00:06]} 38. c7 {[%clk 0:00:12]}  Ng5 {[%clk 0:00:02]} 39. Qd8+ {[%clk 0:00:12]}  Kh7 {[%clk 0:00:03]} 40. Qxc8 {[%clk 0:00:10]}  Qxg4+ {[%clk 0:00:03]} 41. Kf1 {[%clk 0:00:10]}  Qc4+ {[%clk 0:00:04]} 42. Kg2 {[%clk 0:00:08]}  Qg4+ {[%clk 0:00:04]} 43. Bg3 {[%clk 0:00:09]}  Qf3+ {[%clk 0:00:04]} 44. Kf1 {[%clk 0:00:09]}  Ne4 {[%clk 0:00:04]} 45. Qh8+ {[%clk 0:00:06]}  Kxh8 {[%clk 0:00:03]} 46. c8=Q+ {[%clk 0:00:06]}  Kh7 {[%clk 0:00:04]} 47. Qc7 {[%clk 0:00:06]}  f5 {[%clk 0:00:04]} 48. Qf4 {[%clk 0:00:07]}  Qh1+ {[%clk 0:00:04]} 49. Ke2 {[%clk 0:00:07]}  Qxh5+ {[%clk 0:00:05]} 50. f3 {[%clk 0:00:07]}  Nf6 {[%clk 0:00:04]} 51. Rg1 {[%clk 0:00:07]}  Qf7 {[%clk 0:00:04]} 52. Qe5 {[%clk 0:00:07]}  Qd7 {[%clk 0:00:05]} 53. Bf4 {[%clk 0:00:07]}  Nd5 {[%clk 0:00:05]} 54. Bd2 {[%clk 0:00:06]}  g5 {[%clk 0:00:05]} 55. Bc3 {[%clk 0:00:06]}  Kg6 {[%clk 0:00:05]} 56. Bd4 {[%clk 0:00:05]}  Qb5+ {[%clk 0:00:06]} 57. Kf2 {[%clk 0:00:05]}  Qd7 {[%clk 0:00:05]} 58. Rh1 {[%clk 0:00:05]}  Nf4 {[%clk 0:00:05]} 59. Qf6+ {[%clk 0:00:04]}  Kh7 {[%clk 0:00:05]} 60. Rxh6+ {[%clk 0:00:04]}  Kg8 {[%clk 0:00:06]} 61. Rh8# {[%clk 0:00:05]} 1-0


[Site "https://www.chess.com"]

[Event "Titled Tuesday Blitz March 28 Late 2023"]
[White "Koellner, Ruben Gideon"]
[Black "Svane, Frederik"]
[WhiteFideId "12993093"]
[BlackFideId "12923044"]
[WhiteElo "2303"]
[BlackElo "2502"]
[Result "0-1"]
[Round "02"]
[TimeControl "180+2"]
[Date "2023.03.28"]
[WhiteClock "0:00:08"]
[BlackClock "0:00:27"]

1. d4 {[%clk 0:03:00]}  g6 {[%clk 0:02:58]} 2. Nf3 {[%clk 0:03:00]}  Nf6 {[%clk 0:02:57]} 3. Nbd2 {[%clk 0:03:00]}  d6 {[%clk 0:02:56]} 4. e4 {[%clk 0:03:01]}  Bg7 {[%clk 0:02:56]} 5. Bc4 {[%clk 0:03:01]}  O-O {[%clk 0:02:54]} 6. O-O {[%clk 0:03:01]}  Nc6 {[%clk 0:02:54]} 7. c3 {[%clk 0:03:01]}  a5 {[%clk 0:02:51]} 8. a4 {[%clk 0:02:57]}  Nd7 {[%clk 0:02:51]} 9. Bb3 {[%clk 0:02:10]}  e5 {[%clk 0:02:51]} 10. dxe5 {[%clk 0:02:05]}  Ndxe5 {[%clk 0:02:44]} 11. Nxe5 {[%clk 0:02:04]}  Nxe5 {[%clk 0:02:44]} 12. Nc4 {[%clk 0:02:04]}  Nd7 {[%clk 0:02:37]} 13. Be3 {[%clk 0:01:59]}  Qe7 {[%clk 0:02:35]} 14. Bc2 {[%clk 0:01:58]}  b6 {[%clk 0:02:22]} 15. Re1 {[%clk 0:01:57]}  Ba6 {[%clk 0:02:18]} 16. Bd3 {[%clk 0:01:43]}  Nc5 {[%clk 0:02:16]} 17. Bxc5 {[%clk 0:01:39]}  bxc5 {[%clk 0:02:16]} 18. Ne3 {[%clk 0:01:38]}  Bb7 {[%clk 0:02:14]} 19. Nd5 {[%clk 0:01:37]}  Qd8 {[%clk 0:02:06]} 20. Bc4 {[%clk 0:01:33]}  Rb8 {[%clk 0:02:01]} 21. Rb1 {[%clk 0:01:28]}  Bc6 {[%clk 0:01:57]} 22. Qc2 {[%clk 0:01:10]}  Qd7 {[%clk 0:01:56]} 23. b3 {[%clk 0:01:10]}  Rfe8 {[%clk 0:01:47]} 24. Rbd1 {[%clk 0:01:08]}  Bxd5 {[%clk 0:01:29]} 25. exd5 {[%clk 0:01:02]}  Rxe1+ {[%clk 0:01:07]} 26. Rxe1 {[%clk 0:01:03]}  Re8 {[%clk 0:01:07]} 27. Rxe8+ {[%clk 0:01:02]}  Qxe8 {[%clk 0:01:08]} 28. Qe2 {[%clk 0:01:01]}  Qd8 {[%clk 0:01:07]} 29. Bb5 {[%clk 0:01:00]}  Be5 {[%clk 0:01:02]} 30. f4 {[%clk 0:00:43]}  Bxf4 {[%clk 0:01:00]} 31. Qe8+ {[%clk 0:00:43]}  Qxe8 {[%clk 0:01:00]} 32. Bxe8 {[%clk 0:00:44]}  Bd2 {[%clk 0:00:59]} 33. c4 {[%clk 0:00:41]}  Kg7 {[%clk 0:00:59]} 34. Kf2 {[%clk 0:00:40]}  f5 {[%clk 0:00:59]} 35. Kf3 {[%clk 0:00:34]}  Kf6 {[%clk 0:00:58]} 36. h3 {[%clk 0:00:34]}  h5 {[%clk 0:00:44]} 37. h4 {[%clk 0:00:16]}  f4 {[%clk 0:00:37]} 38. g3 {[%clk 0:00:15]}  fxg3 {[%clk 0:00:34]} 39. Kxg3 {[%clk 0:00:16]}  Be1+ {[%clk 0:00:29]} 40. Kh3 {[%clk 0:00:16]}  Kf5 {[%clk 0:00:30]} 41. Bf7 {[%clk 0:00:15]}  g5 {[%clk 0:00:27]} 42. Bxh5 {[%clk 0:00:13]}  Bxh4 {[%clk 0:00:24]} 43. Be8 {[%clk 0:00:11]}  Be1 {[%clk 0:00:23]} 44. Bd7+ {[%clk 0:00:10]}  Kf4 {[%clk 0:00:24]} 45. Kg2 {[%clk 0:00:10]}  g4 {[%clk 0:00:21]} 46. Bc6 {[%clk 0:00:10]}  g3 {[%clk 0:00:21]} 47. Bb5 {[%clk 0:00:10]}  Bc3 {[%clk 0:00:21]} 48. Bc6 {[%clk 0:00:08]}  Be5 {[%clk 0:00:22]} 49. Bd7 {[%clk 0:00:09]}  Ke3 {[%clk 0:00:22]} 50. Bc6 {[%clk 0:00:09]}  Kd3 {[%clk 0:00:23]} 51. Bb5 {[%clk 0:00:09]}  Kc3 {[%clk 0:00:24]} 52. Kf3 {[%clk 0:00:10]}  Kxb3 {[%clk 0:00:24]} 53. Kg2 {[%clk 0:00:11]}  Kc3 {[%clk 0:00:25]} 54. Kf3 {[%clk 0:00:11]}  Kd3 {[%clk 0:00:26]} 55. Kg2 {[%clk 0:00:11]}  Ke4 {[%clk 0:00:26]} 56. Bc6 {[%clk 0:00:11]}  Kd4 {[%clk 0:00:25]} 57. Bb5 {[%clk 0:00:12]}  c6 {[%clk 0:00:22]} 58. dxc6 {[%clk 0:00:04]}  d5 {[%clk 0:00:22]} 59. cxd5 {[%clk 0:00:04]}  Kxd5 {[%clk 0:00:23]} 60. Kf3 {[%clk 0:00:03]}  Kd4 {[%clk 0:00:22]} 61. c7 {[%clk 0:00:03]}  Bxc7 {[%clk 0:00:22]} 62. Bc6 {[%clk 0:00:04]}  c4 {[%clk 0:00:20]} 63. Ke2 {[%clk 0:00:05]}  Kc3 {[%clk 0:00:20]} 64. Bd5 {[%clk 0:00:04]}  Kb4 {[%clk 0:00:19]} 65. Kd1 {[%clk 0:00:04]}  Kxa4 {[%clk 0:00:19]} 66. Kc2 {[%clk 0:00:03]}  Kb4 {[%clk 0:00:20]} 67. Kb2 {[%clk 0:00:03]}  Be5+ {[%clk 0:00:20]} 68. Kc2 {[%clk 0:00:03]}  c3 {[%clk 0:00:20]} 69. Be4 {[%clk 0:00:03]}  Kc5 {[%clk 0:00:21]} 70. Bg2 {[%clk 0:00:03]}  Kd4 {[%clk 0:00:21]} 71. Kb3 {[%clk 0:00:04]}  Ke3 {[%clk 0:00:22]} 72. Bd5 {[%clk 0:00:04]}  Kf2 {[%clk 0:00:22]} 73. Kc2 {[%clk 0:00:05]}  g2 {[%clk 0:00:23]} 74. Bxg2 {[%clk 0:00:05]}  Kxg2 {[%clk 0:00:24]} 75. Kd3 {[%clk 0:00:06]}  Kf2 {[%clk 0:00:24]} 76. Kc2 {[%clk 0:00:07]}  Ke2 {[%clk 0:00:24]} 77. Kc1 {[%clk 0:00:07]}  Kd3 {[%clk 0:00:24]} 78. Kd1 {[%clk 0:00:08]}  c2+ {[%clk 0:00:25]} 79. Kc1 {[%clk 0:00:09]}  Bf4+ {[%clk 0:00:25]} 80. Kb2 {[%clk 0:00:09]}  c1=Q+ {[%clk 0:00:26]} 81. Ka2 {[%clk 0:00:09]}  Qc2+ {[%clk 0:00:27]} 82. Ka3 {[%clk 0:00:08]}  Bd6# {[%clk 0:00:27]} 0-1


[Site "https://www.chess.com"]

[Event "Titled Tuesday Blitz March 28 Late 2023"]
[White "Jocev, Milan"]
[Black "Fressinet, Laurent"]
[WhiteFideId "900680"]
[BlackFideId "608742"]
[WhiteElo "2323"]
[BlackElo "2633"]
[Result "0-1"]
[Round "02"]
[TimeControl "180+2"]
[Date "2023.03.28"]
[WhiteClock "0:00:14"]
[BlackClock "0:01:17"]

1. d4 {[%clk 0:03:00]}  Nf6 {[%clk 0:02:58]} 2. Nf3 {[%clk 0:02:57]}  d5 {[%clk 0:02:58]} 3. Bf4 {[%clk 0:02:57]}  e6 {[%clk 0:02:58]} 4. e3 {[%clk 0:02:57]}  Bd6 {[%clk 0:02:58]} 5. Nbd2 {[%clk 0:02:58]}  O-O {[%clk 0:02:54]} 6. Bd3 {[%clk 0:02:58]}  b6 {[%clk 0:02:54]} 7. O-O {[%clk 0:02:57]}  Ba6 {[%clk 0:02:54]} 8. Bxa6 {[%clk 0:02:53]}  Nxa6 {[%clk 0:02:54]} 9. Qe2 {[%clk 0:02:53]}  Nb8 {[%clk 0:02:48]} 10. Bxd6 {[%clk 0:02:50]}  Qxd6 {[%clk 0:02:41]} 11. e4 {[%clk 0:02:51]}  dxe4 {[%clk 0:02:38]} 12. Nxe4 {[%clk 0:02:52]}  Nxe4 {[%clk 0:02:38]} 13. Qxe4 {[%clk 0:02:52]}  Nd7 {[%clk 0:02:38]} 14. Rad1 {[%clk 0:02:48]}  Nf6 {[%clk 0:02:36]} 15. Qe5 {[%clk 0:02:47]}  Rfd8 {[%clk 0:02:34]} 16. Qxd6 {[%clk 0:02:37]}  cxd6 {[%clk 0:02:34]} 17. c3 {[%clk 0:02:18]}  b5 {[%clk 0:02:33]} 18. Ne1 {[%clk 0:02:16]}  a5 {[%clk 0:02:30]} 19. Nd3 {[%clk 0:02:16]}  Rdc8 {[%clk 0:02:28]} 20. a3 {[%clk 0:02:09]}  Nd5 {[%clk 0:02:26]} 21. Rc1 {[%clk 0:02:06]}  g6 {[%clk 0:02:23]} 22. Rfe1 {[%clk 0:02:02]}  Rc4 {[%clk 0:02:20]} 23. Kf1 {[%clk 0:01:57]}  b4 {[%clk 0:02:12]} 24. cxb4 {[%clk 0:01:10]}  Rxd4 {[%clk 0:02:10]} 25. Red1 {[%clk 0:01:11]}  axb4 {[%clk 0:02:09]} 26. Nxb4 {[%clk 0:00:48]}  Rxd1+ {[%clk 0:02:08]} 27. Rxd1 {[%clk 0:00:49]}  Nxb4 {[%clk 0:02:08]} 28. axb4 {[%clk 0:00:50]}  d5 {[%clk 0:02:07]} 29. Rd3 {[%clk 0:00:49]}  Kf8 {[%clk 0:02:02]} 30. Ke2 {[%clk 0:00:48]}  Rb8 {[%clk 0:01:58]} 31. Rb3 {[%clk 0:00:48]}  Ke7 {[%clk 0:01:58]} 32. g4 {[%clk 0:00:48]}  f6 {[%clk 0:01:50]} 33. f4 {[%clk 0:00:45]}  Kd6 {[%clk 0:01:48]} 34. Kd2 {[%clk 0:00:39]}  e5 {[%clk 0:01:46]} 35. fxe5+ {[%clk 0:00:36]}  fxe5 {[%clk 0:01:47]} 36. Kc2 {[%clk 0:00:36]}  d4 {[%clk 0:01:44]} 37. Rh3 {[%clk 0:00:31]}  Rb7 {[%clk 0:01:38]} 38. b5 {[%clk 0:00:20]}  Kd5 {[%clk 0:01:35]} 39. b6 {[%clk 0:00:19]}  Rxb6 {[%clk 0:01:23]} 40. Rxh7 {[%clk 0:00:19]}  e4 {[%clk 0:01:23]} 41. Re7 {[%clk 0:00:16]}  d3+ {[%clk 0:01:18]} 42. Kc3 {[%clk 0:00:15]}  Rc6+ {[%clk 0:01:18]} 43. Kd2 {[%clk 0:00:15]}  Rc2+ {[%clk 0:01:17]} 44. Kd1 {[%clk 0:00:14]} 0-1


[Site "https://www.chess.com"]

[Event "Titled Tuesday Blitz March 28 Late 2023"]
[White "Babazada, Khazar"]
[Black "Plotnikov, Pavel"]
[WhiteFideId "13413554"]
[BlackFideId "4170342"]
[WhiteElo "2364"]
[BlackElo "2298"]
[Result "0-1"]
[Round "02"]
[TimeControl "180+2"]
[Date "2023.03.28"]
[WhiteClock "0:00:05"]
[BlackClock "0:00:21"]

1. Nf3 {[%clk 0:02:52]}  e6 {[%clk 0:02:59]} 2. g3 {[%clk 0:02:52]}  Nf6 {[%clk 0:02:58]} 3. Bg2 {[%clk 0:02:51]}  d5 {[%clk 0:02:59]} 4. O-O {[%clk 0:02:52]}  Be7 {[%clk 0:03:00]} 5. c4 {[%clk 0:02:51]}  O-O {[%clk 0:03:00]} 6. d4 {[%clk 0:02:51]}  c6 {[%clk 0:03:00]} 7. Qc2 {[%clk 0:02:48]}  Nbd7 {[%clk 0:02:59]} 8. Nc3 {[%clk 0:02:47]}  a6 {[%clk 0:02:58]} 9. e4 {[%clk 0:02:46]}  dxe4 {[%clk 0:02:56]} 10. Nxe4 {[%clk 0:02:46]}  Nxe4 {[%clk 0:02:57]} 11. Qxe4 {[%clk 0:02:47]}  Nf6 {[%clk 0:02:56]} 12. Qc2 {[%clk 0:02:47]}  Qc7 {[%clk 0:02:43]} 13. b3 {[%clk 0:02:42]}  Bd7 {[%clk 0:02:38]} 14. Bb2 {[%clk 0:02:40]}  Rfd8 {[%clk 0:02:36]} 15. Rad1 {[%clk 0:02:35]}  Be8 {[%clk 0:02:36]} 16. Rfe1 {[%clk 0:02:17]}  c5 {[%clk 0:02:35]} 17. dxc5 {[%clk 0:02:12]}  Bxc5 {[%clk 0:02:24]} 18. Ng5 {[%clk 0:01:51]}  Rxd1 {[%clk 0:01:58]} 19. Rxd1 {[%clk 0:01:47]}  e5 {[%clk 0:01:51]} 20. Rd5 {[%clk 0:01:30]}  Nxd5 {[%clk 0:01:36]} 21. Qxh7+ {[%clk 0:01:26]}  Kf8 {[%clk 0:01:36]} 22. Bxd5 {[%clk 0:01:25]}  Qb6 {[%clk 0:01:24]} 23. Qh8+ {[%clk 0:01:11]}  Ke7 {[%clk 0:01:24]} 24. Qxg7 {[%clk 0:01:04]}  Bxf2+ {[%clk 0:01:04]} 25. Kg2 {[%clk 0:01:03]}  Bd4 {[%clk 0:00:49]} 26. Bxf7 {[%clk 0:00:48]}  Bxb2 {[%clk 0:00:38]} 27. Bxe8+ {[%clk 0:00:47]}  Kd6 {[%clk 0:00:23]} 28. Ne4+ {[%clk 0:00:05]}  Ke6 {[%clk 0:00:21]} 0-1


[Site "https://www.chess.com"]

[Event "Titled Tuesday Blitz March 28 Late 2023"]
[White "Janaszak, Dawid"]
[Black "Rasulov, Vugar"]
[WhiteFideId "1119206"]
[BlackFideId "13402390"]
[WhiteElo "2220"]
[BlackElo "2509"]
[Result "0-1"]
[Round "02"]
[TimeControl "180+2"]
[Date "2023.03.28"]
[WhiteClock "0:00:08"]
[BlackClock "0:01:32"]

1. e4 {[%clk 0:03:00]}  e5 {[%clk 0:02:59]} 2. Nf3 {[%clk 0:03:00]}  Nf6 {[%clk 0:03:00]} 3. Nc3 {[%clk 0:02:57]}  Bb4 {[%clk 0:02:59]} 4. Bc4 {[%clk 0:02:54]}  O-O {[%clk 0:02:58]} 5. d3 {[%clk 0:02:51]}  d5 {[%clk 0:02:56]} 6. exd5 {[%clk 0:02:51]}  Nxd5 {[%clk 0:02:57]} 7. Bd2 {[%clk 0:02:52]}  Nxc3 {[%clk 0:02:57]} 8. bxc3 {[%clk 0:02:52]}  Bd6 {[%clk 0:02:57]} 9. Ng5 {[%clk 0:02:45]}  Bf5 {[%clk 0:02:51]} 10. h4 {[%clk 0:02:36]}  h6 {[%clk 0:02:44]} 11. Nxf7 {[%clk 0:02:12]}  Rxf7 {[%clk 0:02:43]} 12. Bxf7+ {[%clk 0:02:10]}  Kxf7 {[%clk 0:02:44]} 13. Qf3 {[%clk 0:02:08]}  Ke6 {[%clk 0:02:32]} 14. Qxb7 {[%clk 0:01:44]}  Nd7 {[%clk 0:02:31]} 15. Qf3 {[%clk 0:01:38]}  Rb8 {[%clk 0:02:29]} 16. d4 {[%clk 0:01:32]}  Qf6 {[%clk 0:02:18]} 17. Qe2 {[%clk 0:01:17]}  Kf7 {[%clk 0:02:12]} 18. g4 {[%clk 0:01:05]}  Be6 {[%clk 0:02:04]} 19. g5 {[%clk 0:01:04]}  Qf5 {[%clk 0:02:00]} 20. gxh6 {[%clk 0:01:00]}  gxh6 {[%clk 0:02:01]} 21. Rg1 {[%clk 0:00:51]}  exd4 {[%clk 0:02:00]} 22. cxd4 {[%clk 0:00:47]}  Bf8 {[%clk 0:01:49]} 23. Rg3 {[%clk 0:00:42]}  Bd5 {[%clk 0:01:43]} 24. Kf1 {[%clk 0:00:32]}  Nf6 {[%clk 0:01:36]} 25. Qe5 {[%clk 0:00:28]}  Qxe5 {[%clk 0:01:33]} 26. dxe5 {[%clk 0:00:28]}  Ne4 {[%clk 0:01:34]} 27. Rf3+ {[%clk 0:00:27]}  Ke6 {[%clk 0:01:34]} 28. Be3 {[%clk 0:00:14]}  Nd2+ {[%clk 0:01:34]} 29. Bxd2 {[%clk 0:00:15]}  Bxf3 {[%clk 0:01:34]} 30. Re1 {[%clk 0:00:11]}  h5 {[%clk 0:01:32]} 31. Re3 {[%clk 0:00:11]}  Rb1+ {[%clk 0:01:32]} 32. Be1 {[%clk 0:00:11]}  Bd5 {[%clk 0:01:32]} 33. Rf3 {[%clk 0:00:08]}  Bxf3 {[%clk 0:01:32]} 0-1


[Site "https://www.chess.com"]

[Event "Titled Tuesday Blitz March 28 Late 2023"]
[White "Grebeniuk, Semen"]
[Black "Movahed, Sina"]
[WhiteFideId "14117509"]
[BlackFideId "42520835"]
[WhiteElo "2266"]
[BlackElo "2225"]
[Result "0-1"]
[Round "02"]
[TimeControl "180+2"]
[Date "2023.03.28"]
[WhiteClock "0:00:04"]
[BlackClock "0:00:47"]

1. d4 {[%clk 0:03:00]}  Nf6 {[%clk 0:02:59]} 2. Nf3 {[%clk 0:03:01]}  g6 {[%clk 0:03:00]} 3. Bg5 {[%clk 0:03:01]}  Bg7 {[%clk 0:03:01]} 4. c3 {[%clk 0:03:01]}  O-O {[%clk 0:02:59]} 5. Nbd2 {[%clk 0:03:02]}  h6 {[%clk 0:02:58]} 6. Bh4 {[%clk 0:03:01]}  c5 {[%clk 0:02:52]} 7. e3 {[%clk 0:03:00]}  d6 {[%clk 0:02:51]} 8. Be2 {[%clk 0:03:00]}  b6 {[%clk 0:02:49]} 9. a4 {[%clk 0:02:57]}  a6 {[%clk 0:02:47]} 10. O-O {[%clk 0:02:56]}  Bb7 {[%clk 0:02:46]} 11. b4 {[%clk 0:02:56]}  Nbd7 {[%clk 0:02:44]} 12. Qb1 {[%clk 0:02:55]}  Nd5 {[%clk 0:02:42]} 13. Rc1 {[%clk 0:02:52]}  Qc7 {[%clk 0:02:41]} 14. bxc5 {[%clk 0:02:50]}  bxc5 {[%clk 0:02:40]} 15. a5 {[%clk 0:02:23]}  Rfc8 {[%clk 0:02:36]} 16. Nc4 {[%clk 0:02:14]}  Rab8 {[%clk 0:02:34]} 17. Qa2 {[%clk 0:02:04]}  Bc6 {[%clk 0:02:31]} 18. e4 {[%clk 0:01:43]}  N5f6 {[%clk 0:01:47]} 19. e5 {[%clk 0:01:43]}  Nd5 {[%clk 0:01:46]} 20. exd6 {[%clk 0:01:22]}  exd6 {[%clk 0:01:47]} 21. Bg3 {[%clk 0:01:22]}  Bf8 {[%clk 0:01:45]} 22. Ncd2 {[%clk 0:00:59]}  cxd4 {[%clk 0:01:34]} 23. cxd4 {[%clk 0:00:39]}  Qb7 {[%clk 0:01:27]} 24. Rab1 {[%clk 0:00:35]}  Bb5 {[%clk 0:01:23]} 25. Bc4 {[%clk 0:00:24]}  Bxc4 {[%clk 0:00:59]} 26. Nxc4 {[%clk 0:00:13]}  Rxc4 {[%clk 0:00:50]} 27. Qxc4 {[%clk 0:00:12]}  Qxb1 {[%clk 0:00:50]} 28. Rxb1 {[%clk 0:00:03]}  Rxb1+ {[%clk 0:00:51]} 29. Qf1 {[%clk 0:00:04]}  Rxf1+ {[%clk 0:00:50]} 30. Kxf1 {[%clk 0:00:05]}  Nb4 {[%clk 0:00:48]} 31. Nd2 {[%clk 0:00:04]}  d5 {[%clk 0:00:47]} 32. Nb3 {[%clk 0:00:04]}  Nc6 {[%clk 0:00:47]} 33. Ke2 {[%clk 0:00:04]}  Bb4 {[%clk 0:00:47]} 34. Kf3 {[%clk 0:00:04]}  Nxa5 {[%clk 0:00:47]} 0-1


[Site "https://www.chess.com"]

[Event "Titled Tuesday Blitz March 28 Late 2023"]
[White "Fiorito, Joaquin"]
[Black "Nazari, Arad"]
[WhiteFideId "180173"]
[BlackFideId "12577324"]
[WhiteElo "2157"]
[BlackElo "2313"]
[Result "1-0"]
[Round "02"]
[TimeControl "180+2"]
[Date "2023.03.28"]
[WhiteClock "0:01:49"]
[BlackClock "0:00:12"]

1. d4 {[%clk 0:03:00]}  Nf6 {[%clk 0:02:59]} 2. c4 {[%clk 0:03:01]}  g6 {[%clk 0:03:00]} 3. Nc3 {[%clk 0:03:01]}  d5 {[%clk 0:03:00]} 4. Nf3 {[%clk 0:03:01]}  Bg7 {[%clk 0:03:00]} 5. h4 {[%clk 0:03:02]}  dxc4 {[%clk 0:02:59]} 6. e4 {[%clk 0:03:02]}  c5 {[%clk 0:02:57]} 7. d5 {[%clk 0:03:02]}  b5 {[%clk 0:02:57]} 8. h5 {[%clk 0:02:58]}  O-O {[%clk 0:02:56]} 9. hxg6 {[%clk 0:02:58]}  fxg6 {[%clk 0:02:54]} 10. Rh4 {[%clk 0:02:57]}  Ng4 {[%clk 0:02:40]} 11. Nxb5 {[%clk 0:02:56]}  Qa5+ {[%clk 0:02:23]} 12. Nc3 {[%clk 0:02:56]}  h5 {[%clk 0:02:23]} 13. Bd2 {[%clk 0:02:56]}  Nd7 {[%clk 0:01:52]} 14. d6 {[%clk 0:02:47]}  e6 {[%clk 0:01:52]} 15. Nd5 {[%clk 0:02:36]}  Qd8 {[%clk 0:01:50]} 16. Ne7+ {[%clk 0:02:37]}  Kf7 {[%clk 0:01:43]} 17. Ng5+ {[%clk 0:02:34]}  Ke8 {[%clk 0:01:41]} 18. Nxe6 {[%clk 0:02:34]}  Qb6 {[%clk 0:01:24]} 19. Nxg7+ {[%clk 0:02:33]}  Kf7 {[%clk 0:01:24]} 20. Rxg4 {[%clk 0:02:32]}  hxg4 {[%clk 0:01:23]} 21. Qxg4 {[%clk 0:02:33]}  Ne5 {[%clk 0:01:13]} 22. Bxc4+ {[%clk 0:02:33]}  Kxg7 {[%clk 0:01:02]} 23. Qh4 {[%clk 0:02:33]}  Rh8 {[%clk 0:00:54]} 24. Qg5 {[%clk 0:02:29]}  Rh1+ {[%clk 0:00:27]} 25. Bf1 {[%clk 0:02:27]}  Rh5 {[%clk 0:00:27]} 26. Nf5+ {[%clk 0:02:11]}  Bxf5 {[%clk 0:00:26]} 27. Qe7+ {[%clk 0:02:11]}  Nf7 {[%clk 0:00:26]} 28. Bc3+ {[%clk 0:02:12]}  Kg8 {[%clk 0:00:19]} 29. Bc4 {[%clk 0:02:07]}  Rh7 {[%clk 0:00:16]} 30. exf5 {[%clk 0:02:04]}  gxf5 {[%clk 0:00:11]} 31. O-O-O {[%clk 0:02:00]}  Qd8 {[%clk 0:00:10]} 32. Qe6 {[%clk 0:01:51]}  Qg5+ {[%clk 0:00:11]} 33. Kb1 {[%clk 0:01:51]}  Rf8 {[%clk 0:00:11]} 34. d7 {[%clk 0:01:49]}  Rh6 {[%clk 0:00:11]} 35. Qxf7+ {[%clk 0:01:48]}  Rxf7 {[%clk 0:00:11]} 36. d8=Q+ {[%clk 0:01:48]}  Qxd8 {[%clk 0:00:11]} 37. Rxd8+ {[%clk 0:01:49]}  Kh7 {[%clk 0:00:12]} 38. Bxf7 {[%clk 0:01:49]} 1-0


[Site "https://www.chess.com"]

[Event "Titled Tuesday Blitz March 28 Late 2023"]
[White "Bernadskiy, Vitaliy"]
[Black "MKlose11"]
[WhiteFideId "14100371"]
[WhiteElo "2488"]
[BlackElo "2556"]
[Result "1-0"]
[Round "02"]
[TimeControl "180+2"]
[Date "2023.03.28"]
[WhiteClock "0:00:33"]
[BlackClock "0:00:17"]

1. Nf3 {[%clk 0:03:00]}  Nf6 {[%clk 0:02:57]} 2. d4 {[%clk 0:02:59]}  c5 {[%clk 0:02:57]} 3. d5 {[%clk 0:02:59]}  b5 {[%clk 0:02:56]} 4. e4 {[%clk 0:02:58]}  Nxe4 {[%clk 0:02:54]} 5. Bd3 {[%clk 0:02:59]}  Qa5+ {[%clk 0:02:53]} 6. c3 {[%clk 0:02:47]}  Nf6 {[%clk 0:02:51]} 7. O-O {[%clk 0:02:43]}  d6 {[%clk 0:02:51]} 8. Re1 {[%clk 0:02:38]}  Bb7 {[%clk 0:02:45]} 9. a4 {[%clk 0:02:36]}  Bxd5 {[%clk 0:02:38]} 10. Bxb5+ {[%clk 0:02:27]}  Bc6 {[%clk 0:02:39]} 11. Bxc6+ {[%clk 0:02:25]}  Nxc6 {[%clk 0:02:38]} 12. Qxd6 {[%clk 0:02:25]}  Qb6 {[%clk 0:02:27]} 13. a5 {[%clk 0:02:24]}  Qb7 {[%clk 0:02:09]} 14. Qxc5 {[%clk 0:02:23]}  e6 {[%clk 0:02:09]} 15. Qg5 {[%clk 0:02:18]}  h6 {[%clk 0:02:07]} 16. Qg3 {[%clk 0:02:17]}  Be7 {[%clk 0:01:57]} 17. Nbd2 {[%clk 0:02:11]}  O-O {[%clk 0:01:51]} 18. Nc4 {[%clk 0:02:11]}  Qb5 {[%clk 0:01:49]} 19. Nce5 {[%clk 0:02:06]}  Kh8 {[%clk 0:01:30]} 20. b4 {[%clk 0:01:54]}  Rac8 {[%clk 0:01:20]} 21. Bb2 {[%clk 0:01:46]}  Nxe5 {[%clk 0:01:04]} 22. Nxe5 {[%clk 0:01:47]}  Bd6 {[%clk 0:01:01]} 23. Nxf7+ {[%clk 0:01:43]}  Rxf7 {[%clk 0:01:00]} 24. Qxd6 {[%clk 0:01:43]}  Rd7 {[%clk 0:00:45]} 25. Qg3 {[%clk 0:01:16]}  Rd2 {[%clk 0:00:41]} 26. c4 {[%clk 0:01:15]}  Qf5 {[%clk 0:00:32]} 27. Bxf6 {[%clk 0:01:07]}  Qxf6 {[%clk 0:00:33]} 28. c5 {[%clk 0:01:04]}  Rb2 {[%clk 0:00:33]} 29. Rab1 {[%clk 0:00:55]}  Rd8 {[%clk 0:00:27]} 30. h3 {[%clk 0:00:49]}  Rdd2 {[%clk 0:00:25]} 31. Rxb2 {[%clk 0:00:46]}  Qxb2 {[%clk 0:00:26]} 32. c6 {[%clk 0:00:38]}  Qxb4 {[%clk 0:00:24]} 33. c7 {[%clk 0:00:38]}  Rc2 {[%clk 0:00:24]} 34. Rxe6 {[%clk 0:00:36]}  Qb1+ {[%clk 0:00:18]} 35. Kh2 {[%clk 0:00:35]}  Qb7 {[%clk 0:00:16]} 36. Re8+ {[%clk 0:00:33]}  Kh7 {[%clk 0:00:17]} 37. Qd3+ {[%clk 0:00:33]}  g6 {[%clk 0:00:17]} 38. Qd7# {[%clk 0:00:33]} 1-0


[Site "https://www.chess.com"]